Cogmind - Beta 10.2 @@@ ROGUE MODE // 2021.05.04 @ 18:54:54 Player: Gobbopathe Result: Destroyed by Y-64 Sentinel with Wave Gun Performance ------------- Evolutions (6) 3000 Regions Visited (12) 2400 Robots Destroyed (78) 390 Value Destroyed (2028) 2028 Prototype IDs (28) 560 Alien Tech Used (0) 0 Bonus (1308) 1308 TOTAL SCORE: 9686 Bonus ------- High Alert Combat Kills 214 Follower Combat Kills 109 Met Warlord at Base 500 MAIN.C Attacked Warlord 500 Friendly Fire -15 Cogmind --------- Core Integrity 0/1150 Matter 300/300 Energy 79/100 System Corruption 6% Temperature Cool (9) Movement Rolling (90) Location -4/Factory Parts ------- > --- POWER (3) -------- (None) > --- PROPULSION (8) --- Centrium Wheel Centrium Wheel Centrium Wheel > --- UTILITY (6) ------ Advanced Terrain Scan Processor > --- WEAPON (2) ------- Plasma Lance > --- INVENTORY (4) ---- Advanced Coolant Injector Makeshift Hacking Suite Makeshift Hacking Suite Vortex Rail Peak State ------------ > --- POWER ------------ Micro Fission Core > --- PROPULSION ------- Antigrav System Antigrav System Linear Gravjet Improved Gyrokinetic Inverter Improved Flight Unit Improved VTOL Module Improved VTOL Module Nuclear Pulse Thruster > --- UTILITY ---------- Advanced Cooling System Large Storage Unit Advanced Sensor Array Improved Signal Interpreter Advanced Terrain Scan Processor Improved Cloaking Device > --- WEAPON ----------- Shock Maul > --- INVENTORY -------- Improved Maneuvering Thrusters Makeshift Hacking Suite Makeshift Hacking Suite Improved Hacking Suite Improved Hacking Suite Tesla Rifle Vortex Rail Vortex Rail Vortex Rail Missile Launcher [Rating: 81] Favorites ----------- Power Light Angular Momentum Engine Engine Light Angular Momentum Engine Power Core Light Nuclear Core Propulsion Improved VTOL Module Treads Improved Treads Wheel Compact Wheel Hover Unit Antigrav System Flight Unit Improved VTOL Module Utility Large Storage Unit Device Advanced Sensor Array Storage Large Storage Unit Processor Improved Signal Interpreter Protection Light Armor Plating Weapon Shock Maul Energy Gun EM Shotgun Energy Cannon Advanced Beam Cannon Ballistic Gun Enhanced Autogun Impact Weapon Shock Maul Piercing Weapon Plasma Lance Build | -11 -10 -9 -8 -8 -8 -6 -5 -5 -5 -5 -4 -4 ------- Run | Scr Mat Mat Mat Sto Rec Fac Fac Upp Upp War Pro Fac Slots Evolved 12 | . . 2 2 . . 4 2 . . . . 2 Power 2 | . . . . . . 1 1 . . . . . Propulsion 6 | . . . 2 . . 2 1 . . . . 1 Utility 4 | . . 2 . . . 1 . . . . . 1 Weapon . | . . . . . . . . . . . . . Parts Attached 131 | 7 9 15 27 15 2 11 10 . . 5 . 30 Power 13 | 1 . 3 2 . . 3 1 . . 1 . 2 Engine 8 | 1 . 2 2 . . 1 1 . . 1 . . Core 5 | . . 1 . . . 2 . . . . . 2 Reactor . | . . . . . . . . . . . . . Propulsion 36 | 2 1 2 13 1 . 2 1 . . . . 14 Treads 1 | . . . . . . . . . . . . 1 Leg . | . . . . . . . . . . . . . Wheel 14 | 2 1 2 6 . . . . . . . . 3 Hover 5 | . . . . . . . . . . . . 5 Flight 16 | . . . 7 1 . 2 1 . . . . 5 Utility 43 | 2 2 5 8 5 1 4 6 . . 2 . 8 Device 28 | . . 2 6 3 1 2 4 . . 2 . 8 Storage 7 | 2 1 1 2 . . 1 . . . . . . Processor 3 | . . . . . . 1 2 . . . . . Hackware . | . . . . . . . . . . . . . Protection 5 | . 1 2 . 2 . . . . . . . . Artifact . | . . . . . . . . . . . . . Weapon 39 | 2 6 5 4 9 1 2 2 . . 2 . 6 Energy Gun 17 | . 4 2 1 3 . 1 1 . . 1 . 4 Energy Cannon 1 | . . . . 1 . . . . . . . . Ballistic Gun 11 | 2 . 3 2 3 1 . . . . . . . Ballistic Cannon . | . . . . . . . . . . . . . Launcher . | . . . . . . . . . . . . . Special Weapon . | . . . . . . . . . . . . . Impact Weapon 8 | . 2 . 1 2 . 1 1 . . . . 1 Slashing Weapon . | . . . . . . . . . . . . . Piercing Weapon 2 | . . . . . . . . . . 1 . 1 Special Melee Weapon . | . . . . . . . . . . . . . Unidentified Prototypes 12 | . . 1 2 5 . . . . . 2 . 2 Parts Lost 48 | . . 11 4 2 . 1 . . . . . 30 Power 7 | . . 1 . . . 1 . . . . . 5 Propulsion 20 | . . 2 1 . . . . . . . . 17 Utility 12 | . . 3 3 1 . . . . . . . 5 Weapon 9 | . . 5 . 1 . . . . . . . 3 Highest Loss Streak 9 | . . 6 2 1 . 1 . . . . . 9 Average Slot Usage (%) 90 | . 100 89 97 98 100 89 99 100 100 94 94 68 Engine 9 | . 14 9 9 9 9 4 10 11 11 14 17 6 Core 1 | . . . . . . 4 5 5 5 2 . 2 Wheel 7 | . 28 21 30 . . . . . . . . . Flight 25 | . . . 5 36 36 40 41 41 41 41 41 23 Device 11 | . . 6 14 21 18 11 11 11 11 11 11 10 Storage 9 | . 14 22 16 9 9 6 5 5 5 5 5 5 Processor 5 | . . . . . . 6 10 11 11 11 11 9 Protection 3 | . 13 7 2 3 9 4 . . . . . . Energy Gun 4 | . 24 11 2 3 . . 5 5 5 . . . Ballistic Gun 5 | . 2 10 15 12 18 8 1 . . . . . Impact Weapon 2 | . 1 . . 1 . . 4 5 5 5 5 3 Naked Turns . | . . . . . . . . . . . . . Heaviest Build 57 | 17 34 57 50 37 37 38 42 42 42 42 42 45 Greatest Support 61 | 32 32 32 54 24 24 36 42 42 42 42 42 61 Greatest Overweight (x) 2 | 2 1 2 1 1 1 1 . . . . . 2 Average Overweight (x) . | . . 1 . 1 1 . . . . . . . Largest Inventory Capacity 16 | 8 10 16 16 10 10 10 10 10 10 10 10 10 Average Capacity 10 | 5 8 16 15 10 10 10 10 10 10 10 10 9 Most Carried 16 | 4 7 16 16 10 10 10 10 9 10 10 10 10 Average Carried 9 | 2 6 10 14 9 9 8 9 9 9 9 9 9 Final Capacity 16 | 8 10 16 10 10 10 10 10 10 10 10 10 4 Final Carried 15 | 4 7 15 10 10 10 10 9 9 10 10 10 4 Class Distribution -------------------- 32% | Scout 29% | Mutant 15% | Scavenger-Mutant 10% | Sprinter 5% | Commander-Mutant 4% | Commander-Sprinter Dominant Class ---------------- Mutant | -10/Materials Mutant | -9/Materials Scavenger-Mutant | -8/Materials Mutant | -8/Storage Commander-Mutant | -8/Recycling Commander-Sprinter | -6/Factory Scout | -5/Factory Scout | -5/Upper Caves Scout | -5/Upper Caves Scout | -5/Warlord Scout | -4/Proximity Caves Sprinter | -4/Factory Resources | -11 -10 -9 -8 -8 -8 -6 -5 -5 -5 -5 -4 -4 ----------- Run | Scr Mat Mat Mat Sto Rec Fac Fac Upp Upp War Pro Fac Matter Collected 2182 | 294 90 328 647 178 109 100 120 . . 50 . 266 Remotely 977 | . . 273 647 57 . . . . . . . . Salvage Created 3350 | 85 268 884 779 403 10 . 20 45 . . . 856 Parts 174 | 5 17 54 46 19 . . 4 . . . . 29 Haulers Intercepted 10 | . 2 4 3 1 . . . . . . . . Recyclers Shooed 3 | . . 2 1 . . . . . . . . . Parts Field Recycled . | . . . . . . . . . . . . . Retrieved Matter . | . . . . . . . . . . . . . Parts Self-Destructed 77 | . . . . . . . . . . 77 . . Prevented 10 | . . . . . . . . . . 10 . . Kills | -11 -10 -9 -8 -8 -8 -6 -5 -5 -5 -5 -4 -4 ------- Run | Scr Mat Mat Mat Sto Rec Fac Fac Upp Upp War Pro Fac Combat Hostiles Destroyed 51 | . 5 15 13 5 1 . . . . . . 12 Melee 6 | . . . . . . . . . . . . 6 Guns 45 | . 5 15 13 5 1 . . . . . . 6 Classes Destroyed 16 | 2 4 3 3 . 1 . . 1 . . . 2 Worker 3 | . . 1 . . . . 1 . . . . 1 Builder 2 | . . . 1 . . . . . . . . 1 Tunneler 1 | 1 . . . . . . . . . . . . Hauler 10 | . 2 4 3 1 . . . . . . . . Recycler 8 | 1 . 2 2 1 . . . . . . . 2 Mechanic 1 | . . 1 . . . . . . . . . . Drone 1 | . . . . . 1 . . . . . . . Watcher 2 | . 1 . . . . . . . . . . 1 Swarmer 19 | . 3 7 6 . . . . . . . . 3 Saboteur 1 | . . . . . . . . . . . . 1 Grunt 13 | . 2 5 3 2 . . . . . . . 1 Duelist 1 | . . . 1 . . . . . . . . . Sentry 9 | . . 3 2 3 . . . . . . . 1 Hunter 3 | . . . 1 . . . . . . . . 2 Programmer 4 | . . . . . . . . . . . . 4 Samaritan 1 | . . . . . . . . 1 . . . . Best Kill Streak 5 | 2 3 5 4 4 1 . 1 . . . . 4 Combat Bots Only 4 | . 3 4 3 4 1 . . . . . . 4 Max Kills in Single Turn 2 | 1 1 2 1 1 1 . 1 1 . . . 1 Gunslinging 1 | . . 1 . . . . . . . . . . Exploded . | . . . . . . . . . . . . . Melee 1 | . . . . . . . . . . . . 1 Uniques/NPCs Destroyed . | . . . . . . . . . . . . . Combat | -11 -10 -9 -8 -8 -8 -6 -5 -5 -5 -5 -4 -4 -------- Run | Scr Mat Mat Mat Sto Rec Fac Fac Upp Upp War Pro Fac Damage Taken 5638 | . 171 830 735 262 . 167 . . . 69 . 3404 Core 1471 | . 10 165 73 46 . . . . . 16 . 1161 Absorbed by Shields . | . . . . . . . . . . . . . Core Remaining (%) 88 | 100 96 58 . . 78 100 . . . . 98 . Volleys Fired 213 | 4 22 67 76 24 3 5 1 . . . . 11 Largest 2 | 2 2 2 2 2 2 2 1 . . . . 1 Hottest 90 | 40 90 90 84 84 53 75 50 . . . . 65 Shots Fired 412 | 8 43 134 152 46 6 10 1 . . . . 12 Gun 410 | 8 43 134 152 44 6 10 1 . . . . 12 Cannon 2 | . . . . 2 . . . . . . . . Launcher . | . . . . . . . . . . . . . Special . | . . . . . . . . . . . . . Kinetic 243 | 8 . 62 130 32 6 5 . . . . . . Thermal 25 | . . . 22 3 . . . . . . . . Explosive . | . . . . . . . . . . . . . Electromagnetic 139 | . 43 72 . 11 . 5 1 . . . . 7 Entropic 5 | . . . . . . . . . . . . 5 Robot Hit Streak 16 | 5 7 13 9 16 1 4 4 . . . . 6 Robot Miss Streak 6 | 1 6 5 4 2 4 2 . . . . . 1 Penetration Max . | . . . . . . . . . . . . . Secondary Targets 5 | . . 4 1 . . . . . . . . . Max Gunslinging Chain 1 | . . 1 1 . . . . . . . . . Shots Hit Robots 317 | 6 32 94 91 31 1 9 1 2 . . . 50 Core Hits 124 | 3 12 41 32 13 1 3 1 . . . . 18 Critical Hits 1 | . . . 1 . . . . . . . . . Critical Kills . | . . . . . . . . . . . . . Critical Parts Destroyed 1 | . . . 1 . . . . . . . . . Melee Attacks 116 | . 4 . 2 2 . 2 9 4 . . 16 77 Impact 108 | . 4 . 2 2 . 2 9 4 . . 16 69 Slashing . | . . . . . . . . . . . . . Piercing 8 | . . . . . . . . . . . . 8 Sneak Attacks 7 | . . . . . . . . 2 . . . 5 Combat Hostiles . | . . . . . . . . . . . . . Follow-up Attacks . | . . . . . . . . . . . . . Damage Inflicted 6339 | 68 419 1334 1428 529 15 121 13 212 . . . 2200 Guns 4064 | 68 353 1274 1428 529 15 121 13 . . . . 263 Cannons . | . . . . . . . . . . . . . Explosions 126 | . 66 60 . . . . . . . . . . Melee 2149 | . . . . . . . . 212 . . . 1937 Ramming . | . . . . . . . . . . . . . Kinetic 2171 | 68 . 586 1148 309 15 45 . . . . . . Thermal 406 | . 66 60 280 . . . . . . . . . Explosive . | . . . . . . . . . . . . . Electromagnetic 1460 | . 353 688 . 220 . 76 13 . . . . 110 Impact 1859 | . . . . . . . . 212 . . . 1647 Slashing . | . . . . . . . . . . . . . Piercing 290 | . . . . . . . . . . . . 290 Entropic 153 | . . . . . . . . . . . . 153 Highest Corruption 6 | . . . . . . . . . . . . 6 Average Corruption 5 | . . . . . . . . . . . . 5 Corruption Purged . | . . . . . . . . . . . . . Effects 23 | . . . . . . . . . . . . 23 Message Errors 8 | . . . . . . . . . . . . 8 Matter Fused 9 | . . . . . . . . . . . . 9 Heat Flow Errors 1 | . . . . . . . . . . . . 1 Energy Discharges 1 | . . . . . . . . . . . . 1 Data Loss (minor) 1 | . . . . . . . . . . . . 1 Misfires 1 | . . . . . . . . . . . . 1 Targeting Errors 2 | . . . . . . . . . . . . 2 Overload Shots . | . . . . . . . . . . . . . Overflow Damage 607 | . . 21 . . . . . 140 . . . 446 Projectiles 15 | . . . . . . . . . . . . 15 Explosions 21 | . . 21 . . . . . . . . . . Melee 571 | . . . . . . . . 140 . . . 431 Knockbacks 12 | . . . . . . . . . . . . 12 Impact 11 | . . . . . . . . . . . . 11 Kinetic . | . . . . . . . . . . . . . Secondary 1 | . . . . . . . . . . . . 1 Self-Inflicted Damage 59 | . 20 39 . . . . . . . . . . Shots 2 | . 1 1 . . . . . . . . . . Rammed . | . . . . . . . . . . . . . Targets Rammed . | . . . . . . . . . . . . . Kicked . | . . . . . . . . . . . . . Crushed . | . . . . . . . . . . . . . Highest Temperature 339 | . 276 339 . 28 16 150 309 168 189 182 231 211 Average Temperature 65 | . 87 142 . 17 10 48 98 58 55 17 66 49 Received Heat Transfer 564 | . 54 132 144 99 . . . . . . . 135 Effects 5 | . . . . . . . 4 . . . 1 . Energy Bleed 1 | . . . . . . . . . . . 1 . Interference 4 | . . . . . . . 4 . . . . . Siege Activations . | . . . . . . . . . . . . . Robots Corrupted 1 | . 1 . . . . . . . . . . . Combat Hostiles . | . . . . . . . . . . . . . Parts Fried 18 | . 3 5 . . . . . 4 . . . 6 Impact Corruptions 24 | . . . . . . . . 5 . . . 19 Robots Melted . | . . . . . . . . . . . . . Combat Hostiles . | . . . . . . . . . . . . . Parts Melted 2 | . . . 1 . . . . . . . . 1 Heat Transferred 768 | . 100 150 518 . . . . . . . . . Parts Sabotaged 2 | . . . . . . . . . . . . 2 Parts Stolen . | . . . . . . . . . . . . . Parts Stripped . | . . . . . . . . . . . . . Power Chain Reactions 4 | . 2 2 . . . . . . . . . . Missiles Intercepted . | . . . . . . . . . . . . . Alert | -11 -10 -9 -8 -8 -8 -6 -5 -5 -5 -5 -4 -4 ------- Run | Scr Mat Mat Mat Sto Rec Fac Fac Upp Upp War Pro Fac Peak Influence 1166 | 10 189 396 449 304 314 1166 629 . . . . 891 Initial 1031 | . 6 79 67 137 118 1031 571 . . . . . Average 358 | 5 100 255 258 221 148 1103 602 . . . . 380 Maximum Alert Level 4 | . . 1 2 1 1 4 2 . . . . 3 Low Security (%) 41 | 100 100 30 27 47 59 . . . . . . 42 Level 1 26 | . . 69 66 52 40 . . . . . . . Level 2 19 | . . . 5 . . . 100 . . . . 49 Level 3 6 | . . . . . . 38 . . . . . 7 Level 4 5 | . . . . . . 61 . . . . . . Level 5 . | . . . . . . . . . . . . . High Security . | . . . . . . . . . . . . . Max Security . | . . . . . . . . . . . . . Squads Dispatched 11 | . 1 . . . . 4 . . . . . 6 Investigation 3 | . 1 . . . . 2 . . . . . . Extermination 3 | . . . . . . . . . . . . 3 Reinforcement 2 | . . . . . . . . . . . . 2 Assault 3 | . . . . . . 2 . . . . . 1 Garrison . | . . . . . . . . . . . . . Intercept . | . . . . . . . . . . . . . Construction Impeded . | . . . . . . . . . . . . . Haulers Reinforced . | . . . . . . . . . . . . . Stealth | -11 -10 -9 -8 -8 -8 -6 -5 -5 -5 -5 -4 -4 --------- Run | Scr Mat Mat Mat Sto Rec Fac Fac Upp Upp War Pro Fac Distress Signals 5 | . . . 2 . . . . . . 1 . 2 Communications Jammed . | . . . . . . . . . . . . . Distress Signals . | . . . . . . . . . . . . . Times Spotted 153 | . 7 20 21 6 7 6 . 7 . 21 . 58 Peak Tracking Total 12 | . 2 5 4 5 3 5 . 9 . 9 . 12 Tactical Retreats 19 | . . 4 . 1 . . . . . . . 14 Traps | -11 -10 -9 -8 -8 -8 -6 -5 -5 -5 -5 -4 -4 ------- Run | Scr Mat Mat Mat Sto Rec Fac Fac Upp Upp War Pro Fac Traps Triggered 3 | . . . . 1 . 2 . . . . . . Indirectly . | . . . . . . . . . . . . . Trap Hack Attempts . | . . . . . . . . . . . . . Triggered . | . . . . . . . . . . . . . Disarmed . | . . . . . . . . . . . . . Reprogrammed . | . . . . . . . . . . . . . Reused . | . . . . . . . . . . . . . Traps Extracted . | . . . . . . . . . . . . . Installed . | . . . . . . . . . . . . . Triggered 11 | . . . . . . . . 1 . 9 1 . Machines | -11 -10 -9 -8 -8 -8 -6 -5 -5 -5 -5 -4 -4 ---------- Run | Scr Mat Mat Mat Sto Rec Fac Fac Upp Upp War Pro Fac Machines Disabled 8 | . 1 . 1 3 1 . . . . . . 2 Max in Single Turn 1 | . 1 . 1 1 . . . . . . . 1 Garrison Access 1 | . . . . . . . 1 . . . . . Machines Sabotaged . | . . . . . . . . . . . . . Garrisons Compromised . | . . . . . . . . . . . . . Overloaded Fab Kills . | . . . . . . . . . . . . . Fab Network Shutdowns 1 | . . . . . . . . . . . . 1 Hacking | -11 -10 -9 -8 -8 -8 -6 -5 -5 -5 -5 -4 -4 --------- Run | Scr Mat Mat Mat Sto Rec Fac Fac Upp Upp War Pro Fac Machines Accessed 53 | . 5 4 3 4 9 5 4 . 1 8 . 10 Terminals 28 | . 5 3 3 3 5 2 3 . . . . 4 Fabricators 2 | . . . . . . 1 . . . . . 1 Repair Stations 4 | . . . . . . 1 . . . . . 3 Recycling Units 5 | . . . . 1 4 . . . . . . . Scanalyzers 3 | . . 1 . . . 1 . . . . . 1 Garrison Access 2 | . . . . . . . 1 . . . . 1 Total Hacks 127 | . 13 11 11 9 29 11 7 . 1 13 . 22 Successful 79 | . 10 7 5 6 13 7 4 . 1 13 . 13 Failed 48 | . 3 4 6 3 16 4 3 . . . . 9 Catastrophic 8 | . 1 . . . 2 3 . . . . . 2 Database Lockouts . | . . . . . . . . . . . . . Manual 43 | . 6 5 8 6 14 . 3 . . . . 1 Terminals 73 | . 13 7 11 7 18 3 6 . . . . 8 Fabricators 6 | . . . . . . 2 . . . . . 4 Repair Stations 8 | . . . . . . 2 . . . . . 6 Recycling Units 13 | . . . . 2 11 . . . . . . . Scanalyzers 11 | . . 4 . . . 4 . . . . . 3 Garrison Access 2 | . . . . . . . 1 . . . . 1 Terminal Hacks 37 | . 7 2 2 4 4 . 2 . 1 13 . 2 Record 7 | . . . . . . . . . . 7 . . Part Schematic 1 | . . . . . 1 . . . . . . . Robot Analysis 1 | . . . . . . . 1 . . . . . Prototype ID Bank 9 | . 2 . 1 . 1 . . . . 5 . . Open Door 4 | . . . . 2 . . . . 1 1 . . Emergency Access Points 1 | . 1 . . . . . . . . . . . Terminal Index 5 | . 1 1 1 1 1 . . . . . . . Alert Level 1 | . 1 . . . . . . . . . . . Unreport Threat 2 | . . 1 . . 1 . . . . . . . Locate Traps 3 | . 1 . . 1 . . 1 . . . . . Zone Layout 3 | . 1 . . . . . . . . . . 2 Fabricator Hacks 5 | . . . . . . 1 . . . . . 4 Load Schematic 3 | . . . . . . 1 . . . . . 2 Build 2 | . . . . . . . . . . . . 2 Repair Station Hacks 7 | . . . . . . 2 . . . . . 5 Scan Component 4 | . . . . . . 1 . . . . . 3 Repair 3 | . . . . . . 1 . . . . . 2 Recycling Unit Hacks 4 | . . . . 1 3 . . . . . . . Retrieve Components 4 | . . . . 1 3 . . . . . . . Scanalyzer 10 | . . 4 . . . 4 . . . . . 2 Insert Component 5 | . . 2 . . . 2 . . . . . 1 Analyze 5 | . . 2 . . . 2 . . . . . 1 Garrison Access Hacks 1 | . . . . . . . 1 . . . . . Seal Access 1 | . . . . . . . 1 . . . . . Unauthorized Hacks 15 | . 3 1 3 1 6 . 1 . . . . . Terminals 11 | . 3 1 3 1 2 . 1 . . . . . Botnet 10 | . 2 1 3 1 2 . 1 . . . . . Operators 1 | . 1 . . . . . . . . . . . Fabricators . | . . . . . . . . . . . . . Repair Stations . | . . . . . . . . . . . . . Recycling Units 4 | . . . . . 4 . . . . . . . Tunnel 4 | . . . . . 4 . . . . . . . Scanalyzers . | . . . . . . . . . . . . . Garrison Access . | . . . . . . . . . . . . . Data Cores Recovered . | . . . . . . . . . . . . . Used . | . . . . . . . . . . . . . Hacking Detections 38 | . 5 4 3 3 6 5 3 . . . . 9 Full Trace Events 4 | . . . . . 4 . . . . . . . Feedback Events . | . . . . . . . . . . . . . Feedback Blocked . | . . . . . . . . . . . . . Robot Schematics Acquired . | . . . . . . . . . . . . . Robots Built . | . . . . . . . . . . . . . Matter . | . . . . . . . . . . . . . Time . | . . . . . . . . . . . . . Total Robot Build Rating . | . . . . . . . . . . . . . Part Schematics Acquired 6 | . . 2 . . 1 2 . . . . . 1 Parts Built 3 | . . . . . . . . . . . . 3 Matter 380 | . . . . . . . . . . . . 380 Time 190 | . . . . . . . . . . . . 190 Total Part Build Rating 15 | . . . . . . . . . . . . 15 Parts Repaired 3 | . . . . . . 1 . . . . . 2 Time 108 | . . . . . . 38 . . . . . 70 Parts Recycled . | . . . . . . . . . . . . . Recycled Matter . | . . . . . . . . . . . . . Retrieved Matter . | . . . . . . . . . . . . . Retrieved Components 13 | . . . . 5 8 . . . . . . . Parts Scanalyzed 5 | . . 2 . . . 2 . . . . . 1 Part Schematics Acquired 5 | . . 2 . . . 2 . . . . . 1 Parts Damaged . | . . . . . . . . . . . . . Bothacking | -11 -10 -9 -8 -8 -8 -6 -5 -5 -5 -5 -4 -4 ------------ Run | Scr Mat Mat Mat Sto Rec Fac Fac Upp Upp War Pro Fac Used RIF Installer . | . . . . . . . . . . . . . Robots Hacked . | . . . . . . . . . . . . . Non-combat . | . . . . . . . . . . . . . Combat . | . . . . . . . . . . . . . Robot Hacks Applied . | . . . . . . . . . . . . . Relay Couplers Released . | . . . . . . . . . . . . . Robots Rewired . | . . . . . . . . . . . . . Allies Hacked . | . . . . . . . . . . . . . Hacks Repelled . | . . . . . . . . . . . . . Allies | -11 -10 -9 -8 -8 -8 -6 -5 -5 -5 -5 -4 -4 -------- Run | Scr Mat Mat Mat Sto Rec Fac Fac Upp Upp War Pro Fac Total Allies 10 | . . . . 10 . . . . . . . . Largest Group 10 | . . . . 10 10 8 . . . . . . Highest-Rated Group 173 | . . . . 173 173 141 . . . . . . Highest-Rated Ally 29 | . . . . 29 29 29 . . . . . . Total Orders . | . . . . . . . . . . . . . Ally Attacks 127 | . . . . . 94 33 . . . . . . Total Damage 1123 | . . . . . 698 425 . . . . . . Kills 22 | . . . . . 17 5 . . . . . . Allies Corrupted . | . . . . . . . . . . . . . Allies Melted . | . . . . . . . . . . . . . Intel | -11 -10 -9 -8 -8 -8 -6 -5 -5 -5 -5 -4 -4 ------- Run | Scr Mat Mat Mat Sto Rec Fac Fac Upp Upp War Pro Fac Robot Analysis Total 1 | . . . . . . . 1 . . . . . Derelict Logs Recovered 2 | . . . . . . . . 1 1 . . . Drone Launches 16 | . . . . 16 . . . . . . . . Drone Recoveries . | . . . . . . . . . . . . . Exploration | -11 -10 -9 -8 -8 -8 -6 -5 -5 -5 -5 -4 -4 ------------- Run | Scr Mat Mat Mat Sto Rec Fac Fac Upp Upp War Pro Fac Turns Passed 5335 | 67 392 626 468 338 261 368 150 347 339 585 244 1150 Spaces Moved 5545 | 41 262 339 177 195 255 456 280 658 664 795 370 1053 Core 3 | 3 . . . . . . . . . . . . Treads . | . . . . . . . . . . . . . Legs . | . . . . . . . . . . . . . Wheels 834 | 38 262 339 158 . . . . . . . . 37 Hover 428 | . . . . . . . . . . . . 428 Flight 4280 | . . . 19 195 255 456 280 658 664 795 370 588 Fastest Speed 14 | 50 100 90 87 96 96 20 17 17 17 17 17 14 Average Speed 42 | 98 105 103 92 96 96 20 17 17 17 17 17 47 Slowest Speed 180 | 150 110 110 106 96 96 90 17 17 17 17 17 180 Overloaded Moves . | . . . . . . . . . . . . . Propulsion Burnouts . | . . . . . . . . . . . . . Robots Hopped 9 | . . . . . . 7 1 . . . . 1 Cave-ins Triggered . | . . . . . . . . . . . . . Exploration Rate (%) 45 | 3 48 30 17 39 78 17 9 82 84 91 59 31 Regions Visited 12 Branch Regions 6 Pre-discovered Areas 4 | . . . . . 4 . . . . . . . Known Exits Taken 6 | . . . . . . 1 1 1 1 1 1 . Unknown Exits Taken 6 | 1 1 1 1 1 1 . . . . . . . Scrap Searched 5 | . . . . . . . . 2 2 . 1 . Spaces Dug 54 | . 4 . 2 2 . 2 9 2 . . 16 17 Terrain Destroyed 72 | . 10 7 2 2 . 2 9 2 . . 16 22 Melee 54 | . 4 . 2 2 . 2 9 2 . . 16 17 Projectile 5 | . . . . . . . . . . . . 5 AOE 13 | . 6 7 . . . . . . . . . . Terrain Rammed . | . . . . . . . . . . . . . Walls Destroyed . | . . . . . . . . . . . . . Machines Disabled . | . . . . . . . . . . . . . Actions | -11 -10 -9 -8 -8 -8 -6 -5 -5 -5 -5 -4 -4 --------- Run | Scr Mat Mat Mat Sto Rec Fac Fac Upp Upp War Pro Fac Total 7949 | 56 326 479 331 303 266 712 364 886 889 1247 526 1564 Wait 1767 | 1 18 38 3 44 3 199 62 225 225 431 139 379 Move 5515 | 40 261 338 176 194 254 441 277 657 663 794 369 1051 Hop 9 | . . . . . . 7 1 . . . . 1 Pick Up 66 | 4 5 18 17 4 2 3 1 . 1 6 1 4 Fast Attach 65 | 7 3 4 7 11 . 4 3 . . 3 . 23 Attach 37 | . . 11 8 1 . 6 3 . . . . 8 Detach 16 | . . 1 2 . . 4 2 . . 1 . 6 Swap 31 | . 6 1 12 3 2 1 4 . . 2 . . Drop 69 | . 7 1 28 11 2 4 1 . . 10 1 4 Fire 213 | 4 22 67 76 24 3 5 1 . . . . 11 Melee 116 | . 4 . 2 2 . 2 9 4 . . 16 77 Ram . | . . . . . . . . . . . . . Kick . | . . . . . . . . . . . . . Crush . | . . . . . . . . . . . . . Escape Stasis 36 | . . . . . . 36 . . . . . . Rewire 2 | . . . . 2 . . . . . . . . Trap . | . . . . . . . . . . . . . Miscellaneous 7 | . . . . 7 . . . . . . . . Route ------- -11/Scrapyard -10/Materials -9/Materials -8/Materials (discovered 2 exits: *Sto x2) -8/Storage -8/Recycling -6/Factory -5/Factory -5/Upper Caves -5/Upper Caves (discovered 2 exits: *Fac / *War) -5/Warlord -4/Proximity Caves -4/Factory History --------- Turn | Location | Event 15 | -11/Scrapyard | Discovered new exit (range 16) 68 | -11/Scrapyard | Entered Materials 306 | -10/Materials | Build established: Mutant 457 | -10/Materials | Discovered new exit (range 3) 460 | -10/Materials | Entered another Materials area 460 | -9/Materials | Evolved 2 slots: Utility x2 744 | -9/Materials | Lost 6 parts (2n2u2w) 945 | -9/Materials | Lost 3 parts (1p2w) 1055 | -9/Materials | Discovered new exit (range 12) 1086 | -9/Materials | Entered another Materials area 1086 | -8/Materials | Evolved 2 slots: Propulsion x2 1306 | -8/Materials | Discovered new exit (range 15) 1360 | -8/Materials | Discovered new exit (range 14) 1379 | -8/Materials | Build established: Scavenger-Mutant 1554 | -8/Materials | Entered Storage 1709 | -8/Storage | Build established: Mutant 1867 | -8/Storage | Assisted by bots powering up and referring to "LRC-V3" 1876 | -8/Storage | Used back door to open Recycling access 1876 | -8/Storage | Discovered new exit (range 5) 1892 | -8/Storage | Entered Recycling 1892 | -8/Recycling | Accompanied by 10 allies 1934 | -8/Recycling | Spotter reported a threat 1958 | -8/Recycling | Spotter reported a threat 1960 | -8/Recycling | Spotter reported a threat 1979 | -8/Recycling | Spotter reported a threat 1979 | -8/Recycling | Spotter reported a threat 1997 | -8/Recycling | Spotter reported a threat 1998 | -8/Recycling | Spotter reported a threat 2011 | -8/Recycling | Spotter reported a threat 2041 | -8/Recycling | Spotter reported a threat 2041 | -8/Recycling | Spotter reported a threat 2041 | -8/Recycling | Spotter reported a threat 2041 | -8/Recycling | Spotter reported a threat 2092 | -8/Recycling | Spotter reported a threat 2094 | -8/Recycling | Spotter reported a threat 2119 | -8/Recycling | Discovered new exit (range 16) 2143 | -8/Recycling | Spotter reported a threat 2143 | -8/Recycling | Spotter reported a threat 2143 | -8/Recycling | Spotter reported a threat 2153 | -8/Recycling | Entered Factory 2153 | -6/Factory | Accompanied by 8 allies 2153 | -6/Factory | Evolved 4 slots: Power x1, Propulsion x2, Utility x1 2200 | -6/Factory | Repaired Adv. Terrain Scanner 2503 | -6/Factory | First assault squad dispatched 2518 | -6/Factory | Discovered new exit (range 15) 2521 | -6/Factory | Identified exit to Factory 2521 | -6/Factory | Entered another Factory area 2521 | -5/Factory | Evolved 2 slots: Power x1, Propulsion x1 2669 | -5/Factory | Discovered new exit (range 4) 2669 | -5/Factory | Identified exit to Upper Caves 2671 | -5/Factory | Entered Upper Caves 2798 | -5/Upper Caves | Build established: Scout 2825 | -5/Upper Caves | Encountered a Warlord checkpoint 3009 | -5/Upper Caves | Learned Factory trap positions 3015 | -5/Upper Caves | Discovered new exit (range 7) 3017 | -5/Upper Caves | Attracted the attention of an 0b10 outpost 3018 | -5/Upper Caves | Identified exit to Upper Caves 3018 | -5/Upper Caves | Entered another Upper Caves area 3039 | -5/Upper Caves | Encountered a Warlord checkpoint 3107 | -5/Upper Caves | Discovered new exit (range 5) 3108 | -5/Upper Caves | Identified exit to Factory 3255 | -5/Upper Caves | Spotted B-75 Beast 3322 | -5/Upper Caves | Identified exit to Warlord 3357 | -5/Upper Caves | Entered Warlord 3401 | -5/Warlord | Received a Watcher feed algorithm from an ecstatic Tinkerer 3477 | -5/Warlord | Visited the Vortex Lab 3477 | -5/Warlord | Found Prototype Energy Gun 3477 | -5/Warlord | Identified Vortex Rail 3480 | -5/Warlord | Found Prototype Piercing Weapon 3480 | -5/Warlord | Identified Vortex Lance 3483 | -5/Warlord | Warlord's base attacked by MAIN.C 3483 | -5/Warlord | Found Vortex Rail 3484 | -5/Warlord | Found Vortex Rail 3487 | -5/Warlord | Found Vortex Rail 3577 | -5/Warlord | Met Warlord 3833 | -5/Warlord | Warlord forces counterattacked 3900 | -5/Warlord | Spotted Executioner 3940 | -5/Warlord | Discovered new exit (range 15) 3942 | -5/Warlord | Identified exit to Proximity Caves 3942 | -5/Warlord | Entered Proximity Caves 4170 | -4/Proximity Caves | Discovered exit to Factory (range 12) 4186 | -4/Proximity Caves | Entered Factory 4186 | -4/Factory | Evolved 2 slots: Propulsion x1, Utility x1 4187 | -4/Factory | Loaded intel: 109 trap records 4222 | -4/Factory | Spotted B-86 Titan 4272 | -4/Factory | Repaired Imp. Flight Unit? 4384 | -4/Factory | Fabricated Nuclear Pulse Thruster (x2) 4480 | -4/Factory | Fabricated Imp. Hacking Suite (x1) 4540 | -4/Factory | Lost 6 parts (2p3n1u) 4673 | -4/Factory | Local fabrication network quarantined 4716 | -4/Factory | First assault squad dispatched 4885 | -4/Factory | Repaired Adv. Sensor Array 5066 | -4/Factory | Lost 9 parts (1p6n1u1w) 5231 | -4/Factory | Core integrity fell below 50% 5266 | -4/Factory | Lost 6 parts (2p1n2u1w) 5328 | -4/Factory | Core integrity fell below 20% 5336 | -4/Factory | Destroyed by Y-64 Sentinel with Wave Gun Last Messages --------------- 05321_ Slug penetrates H-77 Assassin. 05322_ H-77 Assassin retrieves Drone. 05322_ Penetrated by Slug. 05325_ Imp. Gyrokinetic Inverter destroyed. 05326_ Imp. Treads destroyed. 05326_ Penetrated by Slug. 05326_ U-05 Engineer destroyed. 05326_ H-77 Assassin destroyed. 05327_ Slug penetrates Wall. 05329_ Penetrated by Slug. 05330_ Slug penetrates Wall. 05330_ Penetrated by Slug. 05331_ Slug penetrates Wall. 05331_ Penetrated by Slug. 05332_ Lrg. Storage Unit destroyed. 05332_ Penetrated by Slug. 05333_ WZTKB|JTKOL61C9G50P5YM8PMFYVCMCLRA 05333_ Penetrated by Slug. 05334_ H-77 Assassin destroyed. 05334_ Slug penetrates Wall. Map ----- +----------------------------------------------------+ | # ## #?????#???????????? ??????????? | | # ## #??######?????????# #??????????? | | # ## #### ?????????# #??????????? | | # ## + ?????????# #??????????? | | # ## #### ????????# #??????????? | | # ## #??# ???????# #??????????? | | # ## #??# ???????# #??????????? | | #######+####### #??# """ ""???????# #??????????? | | #?# #?????# #??# """ ?????????# /??????????? | | "" ### ###?### #### ""???????????# #??????????? | | " # #?# ##/############## #??????????? | | " # "" ### #??????????? | | + "T ] #??????????? | | """ # ### #??????????? | | """ # !#?# ################## ##??????????? | | """ ### ###?####### ????????# #???????????? | | #?# #?????????# ???????## ##??????????? | | ####### #?????????# """"" ??????## ! #??????????? | | # #?????????# """"" ??????+ #??????????? | | # ########### ""? ??????## #??????????? | | + ## ? ??????###/####????????? | | # #####+## ##+#####+######## #????????? | | # ## # #??#%![ + // #????????? | | # ## # #??#h!Y####### / #????????? | | #+##### ## # #??#!%!#?????#% ! ! #????????? | | # #???# ## # #??#[@!#?????# #????????? | | # #???# ## """ # #?##|=%##????# ! !#????????? | | # #???# ## """ # #?#=]!=[##???########????????? | | ???????????????# ### [ ##???????????????????? | | ???????????????+ #????????????????????? | | ???????????????######## #????????????????????? | | ??????????????????????#%! #????????????????????? | | ??????????????????????#######????????????????????? | | ?????????????????????????????????????????????????? | | | | | | | | | | | | | | | | | | | | | | | | | | | | | | | | | +----------------------------------------------------+ Best States ------------- Heat Dissipation 74 Energy Generation 45 Energy Capacity 340 Matter Stores 300 Matter Capacity 300 Sight Range 16 Robot Scan Range 16 Terrain Scan Range 20 Terrain Scan Density 210 Cloak Strength 3 Power Amplification 30 Armor Coverage 450 Evasion (%) 72 Item Schematics ----------------- Imp. Flight Unit | -9/Materials | Scanalyzed Arm. Wheel | -9/Materials | Scanalyzed Nuclear Pulse Thruster | -8/Recycling | Hacked Shock Maul | -6/Factory | Scanalyzed Adv. Terrain Scanner | -6/Factory | Scanalyzed Imp. Hacking Suite | -4/Factory | Scanalyzed Robot Schematics ------------------ None Fabricated ------------ Nuclear Pulse Thruster | x2 | -4/Factory Imp. Hacking Suite | x1 | -4/Factory Alien Tech Used ----------------- None Achievements -------------- None Challenges ------------ None Game ------ Seed ProtonSupersonicClaw Manual? 0 Play Time 02:26:30 Cumulative 179.1 hours Start 2021.05.04 @ 15:27:21 End 2021.05.04 @ 18:54:54 Sessions 3 Manual Loads 0 Difficulty Rogue Special Mode None Game No. 88 Rogue 88 Adventurer 0 Explorer 0 Win Type - Total 5 Types 4/0/1/0/0/0/0/0/0 Lore% 69 Gallery% 76 Achievement% 59 Wizard Run 0 Options --------- ASCII 0 Keyboard 1 Movement Numpad Keybinds 0 Fullscreen 2 Font 18/SmallcapsGlow Map View 76x50 Tactical HUD 1 Map Filters NONE Filters NONE Steam 1 RUN: cf1d4603-5cc7-40d8-8e9d-e7c1012e9ead